[Event "Late-Titled-Tuesday-Blitz-March-26-2024"]
[Site "Chess.com"]
[Date "2024.03.26"]
[Round "7"]
[White "sergoy"]
[Black "GMG"]
[Result "1-0"]
[WhiteElo "2923"]
[BlackElo "2795"]
[TimeControl "180+1"]
[EndTime "15:18:40 PDT"]
[Termination "sergoy won on time"]

1. d4 {[%clk 0:03:00.9]} 1... d5 {[%clk 0:02:58.3]} 2. c4 {[%clk 0:03:01.3]}
2... e6 {[%clk 0:02:58.5]} 3. Nf3 {[%clk 0:03:02]} 3... a6 {[%clk 0:02:58.4]} 4.
cxd5 {[%clk 0:03:01.1]} 4... exd5 {[%clk 0:02:59.3]} 5. Nc3 {[%clk 0:03:01.7]}
5... Nf6 {[%clk 0:02:59.2]} 6. Bg5 {[%clk 0:03:01.3]} 6... Be6 {[%clk
0:02:59.3]} 7. Qb3 {[%clk 0:03:00.4]} 7... Ra7 {[%clk 0:02:43.9]} 8. e3 {[%clk
0:02:58.7]} 8... Nbd7 {[%clk 0:02:41]} 9. Bd3 {[%clk 0:02:55.5]} 9... Bd6 {[%clk
0:02:37]} 10. O-O {[%clk 0:02:54.2]} 10... O-O {[%clk 0:02:34]} 11. Bf4 {[%clk
0:02:52.3]} 11... Qe7 {[%clk 0:02:31.3]} 12. h3 {[%clk 0:02:52.3]} 12... c6
{[%clk 0:02:26.5]} 13. Rfe1 {[%clk 0:02:50.3]} 13... Re8 {[%clk 0:02:23]} 14.
Qc2 {[%clk 0:02:49.9]} 14... h6 {[%clk 0:02:19.1]} 15. Rad1 {[%clk 0:02:47.1]}
15... Raa8 {[%clk 0:02:17.9]} 16. Ne5 {[%clk 0:02:44.3]} 16... Rac8 {[%clk
0:02:03.6]} 17. Bh2 {[%clk 0:02:42.8]} 17... c5 {[%clk 0:02:02]} 18. Qe2 {[%clk
0:02:40.1]} 18... c4 {[%clk 0:01:58.4]} 19. Bb1 {[%clk 0:02:40.1]} 19... Bb4
{[%clk 0:01:58.2]} 20. Qc2 {[%clk 0:02:35.7]} 20... b5 {[%clk 0:01:41.8]} 21.
Nxd7 {[%clk 0:02:34.4]} 21... Bxd7 {[%clk 0:01:33.9]} 22. Be5 {[%clk 0:02:32.8]}
22... Bc6 {[%clk 0:01:27.7]} 23. Qf5 {[%clk 0:02:26.4]} 23... Qe6 {[%clk
0:01:14.9]} 24. Qxe6 {[%clk 0:02:26]} 24... fxe6 {[%clk 0:01:11.1]} 25. a3
{[%clk 0:02:22.6]} 25... Ba5 {[%clk 0:01:06.2]} 26. f3 {[%clk 0:02:19.4]} 26...
Bc7 {[%clk 0:00:58.9]} 27. e4 {[%clk 0:02:12.7]} 27... Kf7 {[%clk 0:00:54.3]}
28. exd5 {[%clk 0:02:09]} 28... exd5 {[%clk 0:00:50.9]} 29. Bf5 {[%clk
0:02:09.3]} 29... Nd7 {[%clk 0:00:39.6]} 30. Bxc7 {[%clk 0:01:58.6]} 30... Rxc7
{[%clk 0:00:29.8]} 31. Bg6+ {[%clk 0:01:58.3]} 31... Kxg6 {[%clk 0:00:30.2]} 32.
Rxe8 {[%clk 0:01:58.9]} 32... Nf6 {[%clk 0:00:27.9]} 33. Re6 {[%clk 0:01:58.3]}
33... Kf7 {[%clk 0:00:26.9]} 34. Rde1 {[%clk 0:01:58.1]} 34... a5 {[%clk
0:00:27.4]} 35. Na2 {[%clk 0:01:50.9]} 35... Ne8 {[%clk 0:00:17.7]} 36. Nc3
{[%clk 0:01:46.3]} 36... Nf6 {[%clk 0:00:15.3]} 37. Na2 {[%clk 0:01:39.1]} 37...
Ne8 {[%clk 0:00:15.3]} 38. Kf2 {[%clk 0:01:39.5]} 38... Nf6 {[%clk 0:00:14.7]}
39. R6e5 {[%clk 0:01:34.8]} 39... Ne8 {[%clk 0:00:13.6]} 40. g4 {[%clk
0:01:32.5]} 40... Nf6 {[%clk 0:00:13.4]} 41. h4 {[%clk 0:01:32.5]} 41... Rb7
{[%clk 0:00:13.2]} 42. g5 {[%clk 0:01:31.5]} 42... hxg5 {[%clk 0:00:14.1]} 43.
hxg5 {[%clk 0:01:32.2]} 43... Nh5 {[%clk 0:00:14.7]} 44. Nc3 {[%clk 0:01:19.9]}
44... g6 {[%clk 0:00:07.3]} 45. Ke3 {[%clk 0:01:09.1]} 45... Ng7 {[%clk
0:00:06.6]} 46. Nxd5 {[%clk 0:01:03.9]} 46... Nf5+ {[%clk 0:00:05.4]} 47. Kf4
{[%clk 0:01:03.6]} 47... Rd7 {[%clk 0:00:03.4]} 48. Rxf5+ {[%clk 0:00:56.7]}
48... gxf5 {[%clk 0:00:04.3]} 49. g6+ {[%clk 0:00:42.2]} 49... Kxg6 {[%clk
0:00:02.8]} 50. Ne7+ {[%clk 0:00:42.5]} 50... Kf6 {[%clk 0:00:03]} 51. Nxc6
{[%clk 0:00:42.6]} 51... Rd6 {[%clk 0:00:03.6]} 52. d5 {[%clk 0:00:36.2]} 52...
Rxd5 {[%clk 0:00:03]} 53. Re5 {[%clk 0:00:36.5]} 53... Rd2 {[%clk 0:00:02.4]}
54. Rxf5+ {[%clk 0:00:35.3]} 54... Ke6 {[%clk 0:00:02.5]} 55. Rxb5 {[%clk
0:00:36]} 55... Kd6 {[%clk 0:00:02.2]} 56. Ne5 {[%clk 0:00:35.9]} 56... Rd4+
{[%clk 0:00:02.3]} 57. Ke3 {[%clk 0:00:35.3]} 1-0

[Event "Late-Titled-Tuesday-Blitz-March-26-2024"]
[Site "Chess.com"]
[Date "2024.03.26"]
[Round "7"]
[White "Doublekk14"]
[Black "Irishchessman16"]
[Result "1-0"]
[WhiteElo "2426"]
[BlackElo "2544"]
[TimeControl "180+1"]
[EndTime "15:18:45 PDT"]
[Termination "Doublekk14 won by resignation"]

1. c4 {[%clk 0:03:00.9]} 1... b6 {[%clk 0:02:50.7]} 2. e4 {[%clk 0:02:59.5]}
2... e5 {[%clk 0:02:46.1]} 3. Nc3 {[%clk 0:03:00.4]} 3... Bb7 {[%clk 0:02:44.3]}
4. Nf3 {[%clk 0:03:00.3]} 4... Nc6 {[%clk 0:02:38.1]} 5. d4 {[%clk 0:02:58.7]}
5... exd4 {[%clk 0:02:32.4]} 6. Nxd4 {[%clk 0:02:58.1]} 6... Bb4 {[%clk
0:02:25.9]} 7. Nxc6 {[%clk 0:02:52.2]} 7... Bxc6 {[%clk 0:02:23.4]} 8. Bd2
{[%clk 0:02:52.1]} 8... Nf6 {[%clk 0:02:21.7]} 9. f3 {[%clk 0:02:45.5]} 9... Nh5
{[%clk 0:02:15.8]} 10. g3 {[%clk 0:02:39.2]} 10... O-O {[%clk 0:02:13.2]} 11.
Be2 {[%clk 0:02:33.6]} 11... Bc5 {[%clk 0:02:10.2]} 12. Qc2 {[%clk 0:02:22]}
12... Qe7 {[%clk 0:01:53.7]} 13. O-O-O {[%clk 0:02:11.9]} 13... a6 {[%clk
0:01:50]} 14. g4 {[%clk 0:02:06.6]} 14... Nf6 {[%clk 0:01:49.5]} 15. g5 {[%clk
0:02:06.5]} 15... Ne8 {[%clk 0:01:47.6]} 16. f4 {[%clk 0:01:38.3]} 16... b5
{[%clk 0:01:47.2]} 17. Nd5 {[%clk 0:01:35.7]} 17... Bxd5 {[%clk 0:01:45.1]} 18.
cxd5 {[%clk 0:01:32.4]} 18... c6 {[%clk 0:01:41.9]} 19. dxc6 {[%clk 0:01:30]}
19... Rc8 {[%clk 0:01:41.8]} 20. Kb1 {[%clk 0:01:24.6]} 20... Rxc6 {[%clk
0:01:41.2]} 21. Qd3 {[%clk 0:01:18.5]} 21... Rd6 {[%clk 0:01:38.1]} 22. Qf3
{[%clk 0:01:13.7]} 22... Re6 {[%clk 0:01:34.6]} 23. Bd3 {[%clk 0:01:08.3]} 23...
f6 {[%clk 0:01:27.6]} 24. gxf6 {[%clk 0:00:42.3]} 24... Qxf6 {[%clk 0:00:56.2]}
25. Rhf1 {[%clk 0:00:37.1]} 25... g6 {[%clk 0:00:46.9]} 26. Bc3 {[%clk
0:00:35.1]} 26... Bd4 {[%clk 0:00:45.5]} 27. Bxd4 {[%clk 0:00:28.7]} 27... Qxd4
{[%clk 0:00:45.1]} 28. Bc2 {[%clk 0:00:29.2]} 28... Qg7 {[%clk 0:00:31.7]} 29.
Bb3 {[%clk 0:00:26.8]} 29... Kh8 {[%clk 0:00:31]} 30. Bxe6 {[%clk 0:00:22.3]}
30... dxe6 {[%clk 0:00:31.9]} 31. e5 {[%clk 0:00:21.5]} 31... Qe7 {[%clk
0:00:30.9]} 32. Rd3 {[%clk 0:00:19.6]} 32... Ng7 {[%clk 0:00:31]} 33. Rfd1
{[%clk 0:00:19]} 33... Nh5 {[%clk 0:00:31.2]} 34. Rd4 {[%clk 0:00:18.2]} 34...
Rc8 {[%clk 0:00:27.8]} 35. Rd7 {[%clk 0:00:17.5]} 35... Qc5 {[%clk 0:00:27.6]}
36. Rd8+ {[%clk 0:00:15.1]} 36... Kg7 {[%clk 0:00:25.2]} 37. R1d7+ {[%clk
0:00:13.1]} 37... Kh6 {[%clk 0:00:25.4]} 38. Rxc8 {[%clk 0:00:13]} 38... Qxc8
{[%clk 0:00:24.6]} 39. Rd6 {[%clk 0:00:12.6]} 39... Qc5 {[%clk 0:00:23.6]} 40.
a3 {[%clk 0:00:10.5]} 40... Qg1+ {[%clk 0:00:20.1]} 41. Ka2 {[%clk 0:00:10.3]}
41... Qxh2 {[%clk 0:00:21]} 42. f5 {[%clk 0:00:09.3]} 42... Qxe5 {[%clk
0:00:18.7]} 43. Rxe6 {[%clk 0:00:09.3]} 43... Qd4 {[%clk 0:00:16.1]} 44. f6
{[%clk 0:00:06.6]} 44... Qc4+ {[%clk 0:00:16.1]} 45. b3 {[%clk 0:00:04.7]} 45...
Qxe6 {[%clk 0:00:15.4]} 46. f7 {[%clk 0:00:05]} 46... Qd5 {[%clk 0:00:06.6]} 47.
Qxd5 {[%clk 0:00:03.9]} 1-0

[Event "Late-Titled-Tuesday-Blitz-March-26-2024"]
[Site "Chess.com"]
[Date "2024.03.26"]
[Round "7"]
[White "Evandro_Barbosa"]
[Black "esrosenberg"]
[Result "0-1"]
[WhiteElo "2637"]
[BlackElo "2504"]
[TimeControl "180+1"]
[EndTime "15:18:46 PDT"]
[Termination "esrosenberg won by resignation"]

1. e4 {[%clk 0:03:00.9]} 1... e5 {[%clk 0:02:59.3]} 2. Nf3 {[%clk 0:03:00.7]}
2... Nc6 {[%clk 0:02:59.8]} 3. Bb5 {[%clk 0:03:00.7]} 3... Nf6 {[%clk
0:03:00.3]} 4. d3 {[%clk 0:03:00.6]} 4... Ne7 {[%clk 0:02:59.9]} 5. O-O {[%clk
0:02:59.3]} 5... c6 {[%clk 0:02:59.5]} 6. Ba4 {[%clk 0:02:59]} 6... Ng6 {[%clk
0:03:00]} 7. c3 {[%clk 0:02:58.5]} 7... Be7 {[%clk 0:02:58.7]} 8. Re1 {[%clk
0:02:57.9]} 8... O-O {[%clk 0:02:58.2]} 9. Nbd2 {[%clk 0:02:57.2]} 9... Qc7
{[%clk 0:02:57.6]} 10. d4 {[%clk 0:02:56.9]} 10... d6 {[%clk 0:02:52.6]} 11. Bc2
{[%clk 0:02:54.5]} 11... a5 {[%clk 0:02:51]} 12. Nf1 {[%clk 0:02:53.9]} 12...
Be6 {[%clk 0:02:44.4]} 13. Ng3 {[%clk 0:02:53.7]} 13... Rfd8 {[%clk 0:02:36.7]}
14. Ng5 {[%clk 0:02:48.1]} 14... Bg4 {[%clk 0:02:20.3]} 15. f3 {[%clk 0:02:40]}
15... Bd7 {[%clk 0:02:19.4]} 16. Bb3 {[%clk 0:02:33.9]} 16... d5 {[%clk
0:02:18.9]} 17. exd5 {[%clk 0:02:28.9]} 17... Nxd5 {[%clk 0:02:13]} 18. dxe5
{[%clk 0:02:18.6]} 18... Bc5+ {[%clk 0:01:52]} 19. Kh1 {[%clk 0:02:16.2]} 19...
Bf2 {[%clk 0:01:35.5]} 20. Rf1 {[%clk 0:01:51.4]} 20... Bxg3 {[%clk 0:01:32.7]}
21. hxg3 {[%clk 0:01:51.4]} 21... Qxe5 {[%clk 0:01:33.4]} 22. f4 {[%clk
0:01:47.2]} 22... Qf5 {[%clk 0:01:28]} 23. Bc2 {[%clk 0:01:15.8]} 23... Qg4
{[%clk 0:01:26.4]} 24. f5 {[%clk 0:01:01.8]} 24... Ne5 {[%clk 0:01:09.9]} 25.
Qxg4 {[%clk 0:00:22.1]} 25... Nxg4 {[%clk 0:01:09.2]} 26. Bb3 {[%clk 0:00:16.5]}
26... h6 {[%clk 0:01:07.8]} 27. Ne4 {[%clk 0:00:13.9]} 27... Nde3 {[%clk
0:01:05.7]} 28. Bxe3 {[%clk 0:00:14]} 28... Nxe3 {[%clk 0:01:06.6]} 29. Rf3
{[%clk 0:00:12.7]} 29... Nxf5 {[%clk 0:01:03.7]} 30. g4 {[%clk 0:00:10.8]} 30...
Nh4 {[%clk 0:00:58.1]} 31. Rxf7 {[%clk 0:00:09.9]} 31... Kh8 {[%clk 0:00:52]}
32. Nd6 {[%clk 0:00:06.9]} 32... Bxg4 {[%clk 0:00:46.7]} 33. Nxb7 {[%clk
0:00:07.1]} 33... Rd2 {[%clk 0:00:46.4]} 34. Rf4 {[%clk 0:00:07.4]} 34... Rxg2
{[%clk 0:00:44.4]} 35. Rg1 {[%clk 0:00:05.9]} 35... Rxg1+ {[%clk 0:00:36.4]} 36.
Kxg1 {[%clk 0:00:06.8]} 36... h5 {[%clk 0:00:36.1]} 37. Nd6 {[%clk 0:00:06.9]}
37... Nf3+ {[%clk 0:00:23.3]} 38. Kf2 {[%clk 0:00:06.8]} 38... Ne5 {[%clk
0:00:21.3]} 39. Re4 {[%clk 0:00:06.6]} 39... Rf8+ {[%clk 0:00:18.7]} 40. Ke1
{[%clk 0:00:05.8]} 40... Nd3+ {[%clk 0:00:18]} 41. Kd2 {[%clk 0:00:05.6]} 41...
Nxb2 {[%clk 0:00:16.3]} 42. Re7 {[%clk 0:00:05.4]} 42... Rf2+ {[%clk 0:00:14.7]}
43. Ke3 {[%clk 0:00:05.4]} 43... Re2+ {[%clk 0:00:14.5]} 44. Kf4 {[%clk
0:00:04]} 44... Rxe7 {[%clk 0:00:15.1]} 45. Nf7+ {[%clk 0:00:03.7]} 45... Kh7
{[%clk 0:00:14.6]} 46. Ng5+ {[%clk 0:00:04.3]} 46... Kg6 {[%clk 0:00:14.4]} 47.
Bc2+ {[%clk 0:00:03.9]} 47... Kf6 {[%clk 0:00:14.5]} 48. Nh7+ {[%clk 0:00:04.1]}
48... Ke6 {[%clk 0:00:13]} 49. Bb3+ {[%clk 0:00:05]} 49... Kd6 {[%clk
0:00:12.3]} 50. Ng5 {[%clk 0:00:02.5]} 50... a4 {[%clk 0:00:09.2]} 0-1

[Event "Late-Titled-Tuesday-Blitz-March-26-2024"]
[Site "Chess.com"]
[Date "2024.03.26"]
[Round "7"]
[White "Xavier_mompel"]
[Black "GWR2024"]
[Result "1-0"]
[WhiteElo "2344"]
[BlackElo "2176"]
[TimeControl "180+1"]
[EndTime "15:18:47 PDT"]
[Termination "Xavier_mompel won by checkmate"]

1. e4 {[%clk 0:03:00.9]} 1... e5 {[%clk 0:02:59.6]} 2. Nf3 {[%clk 0:03:00.7]}
2... d5 {[%clk 0:02:59]} 3. Nxe5 {[%clk 0:02:58.4]} 3... Bd6 {[%clk 0:02:58.6]}
4. d4 {[%clk 0:02:56.9]} 4... dxe4 {[%clk 0:02:58.5]} 5. Bc4 {[%clk 0:02:51.5]}
5... Bxe5 {[%clk 0:02:58]} 6. dxe5 {[%clk 0:02:52.4]} 6... Qxd1+ {[%clk
0:02:57.8]} 7. Kxd1 {[%clk 0:02:53.3]} 7... Nc6 {[%clk 0:02:58.3]} 8. Bb5 {[%clk
0:02:42.5]} 8... Ne7 {[%clk 0:02:57.9]} 9. Nc3 {[%clk 0:02:41.5]} 9... Bg4+
{[%clk 0:02:55.5]} 10. Ke1 {[%clk 0:02:38.7]} 10... O-O-O {[%clk 0:02:55.6]} 11.
Bg5 {[%clk 0:02:31.6]} 11... h6 {[%clk 0:02:27.6]} 12. Bxc6 {[%clk 0:02:28.2]}
12... hxg5 {[%clk 0:02:24.9]} 13. Bxe4 {[%clk 0:02:28.1]} 13... Rde8 {[%clk
0:02:17.9]} 14. f3 {[%clk 0:02:19]} 14... Bd7 {[%clk 0:02:17.1]} 15. Kf2 {[%clk
0:02:12.2]} 15... Ng8 {[%clk 0:02:05.9]} 16. Rae1 {[%clk 0:02:03]} 16... c6
{[%clk 0:02:04.4]} 17. Bd3 {[%clk 0:02:01]} 17... Kc7 {[%clk 0:01:53.8]} 18. g3
{[%clk 0:01:47.2]} 18... Nh6 {[%clk 0:01:51.3]} 19. Re2 {[%clk 0:01:42.9]} 19...
Nf5 {[%clk 0:01:47]} 20. Bxf5 {[%clk 0:01:37.1]} 20... Bxf5 {[%clk 0:01:47.9]}
21. g4 {[%clk 0:01:37.6]} 21... Bg6 {[%clk 0:01:46.1]} 22. Kg3 {[%clk
0:01:36.6]} 22... Rh4 {[%clk 0:01:45]} 23. Rhe1 {[%clk 0:01:28.4]} 23... Reh8
{[%clk 0:01:39.3]} 24. Rh1 {[%clk 0:01:07.9]} 24... Rh3+ {[%clk 0:01:37.6]} 25.
Kg2 {[%clk 0:01:07.9]} 25... R3h6 {[%clk 0:01:24]} 26. Nd1 {[%clk 0:01:05.2]}
26... Rd8 {[%clk 0:01:19.5]} 27. Nf2 {[%clk 0:01:04.6]} 27... Rhh8 {[%clk
0:01:17]} 28. Rd1 {[%clk 0:00:45.6]} 28... Rxd1 {[%clk 0:00:55.4]} 29. Nxd1
{[%clk 0:00:46.5]} 29... Rd8 {[%clk 0:00:53.4]} 30. Nf2 {[%clk 0:00:45.8]} 30...
Rd4 {[%clk 0:00:51]} 31. Nh3 {[%clk 0:00:37.9]} 31... f6 {[%clk 0:00:50]} 32.
exf6 {[%clk 0:00:35.7]} 32... gxf6 {[%clk 0:00:50.9]} 33. Kg3 {[%clk 0:00:28]}
33... a5 {[%clk 0:00:50.7]} 34. c3 {[%clk 0:00:26]} 34... Rd7 {[%clk 0:00:45.6]}
35. Nf2 {[%clk 0:00:25.1]} 35... a4 {[%clk 0:00:44.4]} 36. h4 {[%clk 0:00:23.5]}
36... gxh4+ {[%clk 0:00:42.8]} 37. Kxh4 {[%clk 0:00:24.4]} 37... a3 {[%clk
0:00:43]} 38. bxa3 {[%clk 0:00:23.1]} 38... Kb6 {[%clk 0:00:41.1]} 39. Ne4
{[%clk 0:00:19.3]} 39... Rf7 {[%clk 0:00:35.6]} 40. f4 {[%clk 0:00:12]} 40... f5
{[%clk 0:00:26.1]} 41. Nd6 {[%clk 0:00:11.3]} 41... Rf6 {[%clk 0:00:23.9]} 42.
gxf5 {[%clk 0:00:06.1]} 42... Bxf5 {[%clk 0:00:21.7]} 43. Nxf5 {[%clk
0:00:03.8]} 43... Rxf5 {[%clk 0:00:22.6]} 44. Kg4 {[%clk 0:00:04.4]} 44... Ra5
{[%clk 0:00:22.9]} 45. f5 {[%clk 0:00:03.6]} 45... Kc7 {[%clk 0:00:23.1]} 46. f6
{[%clk 0:00:03.6]} 46... Ra4+ {[%clk 0:00:22]} 47. Kg5 {[%clk 0:00:03.5]} 47...
Kd8 {[%clk 0:00:22.9]} 48. f7 {[%clk 0:00:03.2]} 48... Ra5+ {[%clk 0:00:23.7]}
49. Kf6 {[%clk 0:00:03.2]} 49... Kd7 {[%clk 0:00:21.3]} 50. f8=Q {[%clk
0:00:03.3]} 50... Rf5+ {[%clk 0:00:21.6]} 51. Kxf5 {[%clk 0:00:03.6]} 51... Kc7
{[%clk 0:00:22.5]} 52. Re7+ {[%clk 0:00:03.8]} 52... Kb6 {[%clk 0:00:23.4]} 53.
Qd8+ {[%clk 0:00:04.4]} 53... Ka6 {[%clk 0:00:23.5]} 54. Qd3+ {[%clk 0:00:04.9]}
54... Ka5 {[%clk 0:00:24.4]} 55. Rxb7 {[%clk 0:00:04.5]} 55... Ka4 {[%clk
0:00:24.5]} 56. Qa6# {[%clk 0:00:04.4]} 1-0

[Event "Late-Titled-Tuesday-Blitz-March-26-2024"]
[Site "Chess.com"]
[Date "2024.03.26"]
[Round "7"]
[White "GHANDEEVAM2003"]
[Black "Mikhail_Bryakin"]
[Result "1-0"]
[WhiteElo "3052"]
[BlackElo "2876"]
[TimeControl "180+1"]
[EndTime "15:18:48 PDT"]
[Termination "GHANDEEVAM2003 won on time"]

1. Nf3 {[%clk 0:03:00.9]} 1... d5 {[%clk 0:02:58.4]} 2. b3 {[%clk 0:03:01.8]}
2... Nf6 {[%clk 0:02:55.9]} 3. Bb2 {[%clk 0:03:02.3]} 3... c6 {[%clk 0:02:55.1]}
4. c4 {[%clk 0:03:02.4]} 4... Bf5 {[%clk 0:02:54.2]} 5. e3 {[%clk 0:03:00.6]}
5... e6 {[%clk 0:02:54.6]} 6. Nh4 {[%clk 0:02:58.4]} 6... Bg6 {[%clk 0:02:52.7]}
7. Be2 {[%clk 0:02:57.4]} 7... Nbd7 {[%clk 0:02:51.7]} 8. O-O {[%clk 0:02:57.4]}
8... Be7 {[%clk 0:02:51.8]} 9. d3 {[%clk 0:02:55.4]} 9... a5 {[%clk 0:02:51]}
10. a3 {[%clk 0:02:54]} 10... O-O {[%clk 0:02:46.3]} 11. Nd2 {[%clk 0:02:52.9]}
11... Re8 {[%clk 0:02:44.4]} 12. Nxg6 {[%clk 0:02:50.3]} 12... hxg6 {[%clk
0:02:44.1]} 13. Qc2 {[%clk 0:02:51.1]} 13... Bd6 {[%clk 0:02:43.1]} 14. Rfc1
{[%clk 0:02:41.2]} 14... Be5 {[%clk 0:02:42]} 15. d4 {[%clk 0:02:35.5]} 15...
Bd6 {[%clk 0:02:41.5]} 16. g3 {[%clk 0:02:33.4]} 16... Qe7 {[%clk 0:02:40.4]}
17. Kg2 {[%clk 0:02:32.9]} 17... g5 {[%clk 0:02:04.3]} 18. h3 {[%clk 0:02:25.7]}
18... g6 {[%clk 0:02:03.4]} 19. Bd3 {[%clk 0:02:16.8]} 19... Kg7 {[%clk
0:01:52.2]} 20. Nf3 {[%clk 0:02:15.4]} 20... g4 {[%clk 0:01:49.5]} 21. hxg4
{[%clk 0:02:11.8]} 21... Nxg4 {[%clk 0:01:50.1]} 22. Rh1 {[%clk 0:02:12.3]}
22... Rh8 {[%clk 0:01:47.7]} 23. e4 {[%clk 0:02:11.8]} 23... Rac8 {[%clk
0:01:02.9]} 24. e5 {[%clk 0:02:07.1]} 24... Bb8 {[%clk 0:01:00.7]} 25. Qd2
{[%clk 0:02:03.2]} 25... b6 {[%clk 0:00:52.6]} 26. Qf4 {[%clk 0:01:56.9]} 26...
Nh6 {[%clk 0:00:51.4]} 27. cxd5 {[%clk 0:01:46.5]} 27... cxd5 {[%clk 0:00:48]}
28. g4 {[%clk 0:01:37.5]} 28... f6 {[%clk 0:00:30.5]} 29. g5 {[%clk 0:01:23.5]}
29... fxg5 {[%clk 0:00:23.1]} 30. Qxg5 {[%clk 0:01:24.4]} 30... Qxg5+ {[%clk
0:00:19]} 31. Nxg5 {[%clk 0:01:25.3]} 31... Nf8 {[%clk 0:00:19.7]} 32. Rac1
{[%clk 0:01:17.1]} 32... Rc7 {[%clk 0:00:16.4]} 33. a4 {[%clk 0:00:52.7]} 33...
Nf5 {[%clk 0:00:16.3]} 34. Ba3 {[%clk 0:00:52.4]} 34... Rxh1 {[%clk 0:00:08.3]}
35. Rxh1 {[%clk 0:00:50.6]} 35... Nxd4 {[%clk 0:00:02.1]} 36. Bxf8+ {[%clk
0:00:50.1]} 36... Kxf8 {[%clk 0:00:02.6]} 37. Rh8+ {[%clk 0:00:50.6]} 37... Kg7
{[%clk 0:00:03.2]} 38. Rxb8 {[%clk 0:00:51.5]} 38... Rc3 {[%clk 0:00:03.7]} 39.
Rb7+ {[%clk 0:00:49.3]} 39... Kh6 {[%clk 0:00:03.7]} 40. f4 {[%clk 0:00:48.8]}
40... Kh5 {[%clk 0:00:02]} 41. Ba6 {[%clk 0:00:19.3]} 41... Rxb3 {[%clk
0:00:02.3]} 42. Kf2 {[%clk 0:00:17]} 42... Kg4 {[%clk 0:00:02.6]} 43. Rf7 {[%clk
0:00:17.2]} 43... Nf5 {[%clk 0:00:02.9]} 44. Nxe6 {[%clk 0:00:16.4]} 44... d4
{[%clk 0:00:03.5]} 45. Be2+ {[%clk 0:00:16.8]} 45... Kh3 {[%clk 0:00:02.6]} 46.
Rh7+ {[%clk 0:00:17.1]} 46... Nh4 {[%clk 0:00:03.2]} 47. Ng5+ {[%clk 0:00:18]}
1-0

[Event "Late-Titled-Tuesday-Blitz-March-26-2024"]
[Site "Chess.com"]
[Date "2024.03.26"]
[Round "7"]
[White "ValeriyGrinev"]
[Black "Der_Balak_3Halak"]
[Result "0-1"]
[WhiteElo "2592"]
[BlackElo "2433"]
[TimeControl "180+1"]
[EndTime "15:18:49 PDT"]
[Termination "Der_Balak_3Halak won by resignation"]

1. e4 {[%clk 0:02:55.5]} 1... e6 {[%clk 0:02:59.3]} 2. d4 {[%clk 0:02:54.9]}
2... d5 {[%clk 0:03:00.2]} 3. e5 {[%clk 0:02:55.5]} 3... c5 {[%clk 0:03:00.2]}
4. c3 {[%clk 0:02:55.9]} 4... Nc6 {[%clk 0:03:00.2]} 5. Nf3 {[%clk 0:02:55.4]}
5... Qb6 {[%clk 0:02:56.4]} 6. Bd3 {[%clk 0:02:53.1]} 6... Bd7 {[%clk
0:02:54.3]} 7. O-O {[%clk 0:02:51.6]} 7... cxd4 {[%clk 0:02:49.1]} 8. Re1 {[%clk
0:02:50.7]} 8... g6 {[%clk 0:02:45.8]} 9. cxd4 {[%clk 0:02:37.3]} 9... Bg7
{[%clk 0:02:45.1]} 10. Bf1 {[%clk 0:02:29]} 10... Nge7 {[%clk 0:02:44.4]} 11.
Nc3 {[%clk 0:02:25.6]} 11... O-O {[%clk 0:02:43.6]} 12. Na4 {[%clk 0:02:17.6]}
12... Qc7 {[%clk 0:02:34.2]} 13. Nc5 {[%clk 0:02:18.5]} 13... Nf5 {[%clk
0:02:33.7]} 14. g4 {[%clk 0:02:07.7]} 14... Nfe7 {[%clk 0:02:21]} 15. Bg5 {[%clk
0:01:59.3]} 15... h6 {[%clk 0:02:16.5]} 16. Bh4 {[%clk 0:01:56.9]} 16... Rac8
{[%clk 0:02:09.9]} 17. Rc1 {[%clk 0:01:55.9]} 17... b6 {[%clk 0:02:07.6]} 18.
Nxd7 {[%clk 0:01:52]} 18... Qxd7 {[%clk 0:02:08.5]} 19. Bb5 {[%clk 0:01:52.1]}
19... g5 {[%clk 0:02:05.8]} 20. Nxg5 {[%clk 0:01:50.1]} 20... hxg5 {[%clk
0:02:03.5]} 21. Bxg5 {[%clk 0:01:51]} 21... f6 {[%clk 0:01:59.2]} 22. exf6
{[%clk 0:01:48.9]} 22... Bxf6 {[%clk 0:02:00.1]} 23. Be3 {[%clk 0:01:41]} 23...
Bh4 {[%clk 0:01:37.5]} 24. Qd3 {[%clk 0:01:39.5]} 24... a6 {[%clk 0:01:28.6]}
25. Bxa6 {[%clk 0:01:35.7]} 25... Nb4 {[%clk 0:01:26.6]} 26. Bxc8 {[%clk
0:01:35.7]} 26... Nxd3 {[%clk 0:01:17.2]} 27. Bxd7 {[%clk 0:01:35.5]} 27... Kf7
{[%clk 0:01:04.5]} 28. Bxe6+ {[%clk 0:01:29]} 28... Kxe6 {[%clk 0:00:58.6]} 29.
Bh6+ {[%clk 0:01:28.3]} 29... Kf7 {[%clk 0:00:54.7]} 30. Bxf8 {[%clk 0:01:24.3]}
30... Bxf2+ {[%clk 0:00:50.4]} 31. Kf1 {[%clk 0:01:22.1]} 31... Bxe1 {[%clk
0:00:51]} 32. Bxe7 {[%clk 0:01:17.1]} 32... Nxc1 {[%clk 0:00:50.3]} 33. Kxe1
{[%clk 0:01:16.7]} 33... Kxe7 {[%clk 0:00:50.1]} 34. Kd2 {[%clk 0:01:17.1]}
34... Nxa2 {[%clk 0:00:49.7]} 35. h4 {[%clk 0:01:15]} 35... Kf6 {[%clk
0:00:48.2]} 36. Ke3 {[%clk 0:01:09.6]} 36... Nb4 {[%clk 0:00:45.3]} 37. b3
{[%clk 0:01:07.9]} 37... b5 {[%clk 0:00:40.1]} 38. Kf4 {[%clk 0:01:00.9]} 38...
Nd3+ {[%clk 0:00:39.5]} 39. Kf3 {[%clk 0:01:00.9]} 39... Nc1 {[%clk 0:00:37.9]}
40. b4 {[%clk 0:00:57.5]} 40... Nd3 {[%clk 0:00:35.1]} 41. g5+ {[%clk
0:00:48.2]} 41... Kf5 {[%clk 0:00:34.5]} 42. Ke3 {[%clk 0:00:44.6]} 42... Nxb4
{[%clk 0:00:34.4]} 43. Kd2 {[%clk 0:00:45.3]} 43... Nc6 {[%clk 0:00:34.1]} 44.
Kd3 {[%clk 0:00:45.4]} 44... b4 {[%clk 0:00:34.1]} 45. Ke3 {[%clk 0:00:45.3]}
45... Na5 {[%clk 0:00:23.1]} 46. Kd3 {[%clk 0:00:42.8]} 46... Nc4 {[%clk
0:00:22.7]} 47. Kc2 {[%clk 0:00:43.2]} 47... Na5 {[%clk 0:00:22.3]} 48. Kd3
{[%clk 0:00:42.7]} 48... Kg6 {[%clk 0:00:22.8]} 49. Ke3 {[%clk 0:00:42.6]} 49...
b3 {[%clk 0:00:20.1]} 50. Kd3 {[%clk 0:00:43]} 50... Nc6 {[%clk 0:00:21]} 51.
Kc3 {[%clk 0:00:43.1]} 51... Nxd4 {[%clk 0:00:21.9]} 52. Kb2 {[%clk 0:00:38.7]}
52... Kf5 {[%clk 0:00:17.6]} 53. Kc3 {[%clk 0:00:38.9]} 53... Nf3 {[%clk
0:00:13.9]} 54. h5 {[%clk 0:00:37.1]} 54... Nxg5 {[%clk 0:00:12.7]} 55. Kxb3
{[%clk 0:00:36.8]} 55... Ke4 {[%clk 0:00:13.2]} 56. Kc2 {[%clk 0:00:36.1]} 56...
Ke3 {[%clk 0:00:13.4]} 57. Kd1 {[%clk 0:00:35.7]} 57... Kd3 {[%clk 0:00:13.8]}
58. Ke1 {[%clk 0:00:34.4]} 58... Kc2 {[%clk 0:00:14.2]} 59. Ke2 {[%clk
0:00:33.7]} 59... d4 {[%clk 0:00:15.1]} 60. Kf2 {[%clk 0:00:34.3]} 60... d3
{[%clk 0:00:15.2]} 61. Kg3 {[%clk 0:00:35.2]} 61... d2 {[%clk 0:00:15.4]} 62.
Kg4 {[%clk 0:00:36.1]} 62... Nh7 {[%clk 0:00:15.7]} 63. Kf5 {[%clk 0:00:36.4]}
63... d1=Q {[%clk 0:00:16.6]} 64. Kg6 {[%clk 0:00:37.3]} 64... Qd3+ {[%clk
0:00:16.4]} 65. Kg7 {[%clk 0:00:37.7]} 65... Ng5 {[%clk 0:00:17]} 66. h6 {[%clk
0:00:38.6]} 66... Qh7+ {[%clk 0:00:17]} 67. Kf6 {[%clk 0:00:38.9]} 67... Qxh6+
{[%clk 0:00:17.9]} 0-1